fUST/lending_fUST_20240227
["ID","MTS","AMOUNT","RATE_DAILY","PERIOD"]
[315427930,1709027450087,-500.0,0.00020821,2]
[315427931,1709027450096,-151.0,0.000209,2]
[315427932,1709027450106,-1619.97680138,0.000209,2]
[315427933,1709027450115,-500.0,0.00020908,2]
[315427934,1709027450124,-166.666666,0.00020973,2]
[315427935,1709027450133,-153.0,0.00020986,2]
[315427936,1709027450143,-153.0,0.00020986,2]
[315427937,1709027450152,-285.23456099,0.00020999,2]
[315427938,1709027450165,-345254.53320307,0.00021,2]
[315427939,1709027450180,-1291.40967047,0.00021,2]
[315427940,1709027450268,-1999.05231351,0.00021,2]
[315427941,1709027450291,-473.65,0.00019442,3]
[315427942,1709027450301,-29509.59712074,0.00021,2]
[315427943,1709027450313,-1550.54537834,0.00021,2]
[315427955,1709028130309,-284.869342,0.00018242,2]
[315427956,1709028130332,-5542.8877113,0.00018293,2]
[315427957,1709028130354,-1322.19520774,0.000189,2]
[315427958,1709028142748,-315.76,0.00019168,3]
[315427959,1709028142771,-1212.95815325,0.00019177,2]
[315427960,1709028142793,-300.0,0.00019177,2]
[315427961,1709028142816,-500.0,0.00019177,2]
[315427962,1709028142838,-1213.15239165,0.00019177,2]
[315427963,1709028142860,-500.0,0.00019178,2]
[315427964,1709028142882,-600.68,0.00019178,2]
[315427965,1709028142905,-165.4960555,0.00019178,2]
[315427966,1709028142928,-982.81,0.00019178,2]
[315427967,1709028142949,-623.34371175,0.00019178,2]
[315427968,1709028142971,-500.0,0.00019178,2]
[315427969,1709028142992,-500.0,0.00019178,2]
[315427970,1709028143016,-500.0,0.00019178,2]
[315427971,1709028143039,-500.0,0.00019178,2]
[315427972,1709028143069,-500.0,0.00019178,2]
[315427973,1709028143091,-500.0,0.00019178,2]
[315427974,1709028143113,-1240.11,0.00019178,2]
[315427975,1709028143136,-500.0,0.00019178,2]
[315427976,1709028143159,-1244.23,0.00019178,2]
[315427977,1709028143182,-500.0,0.00019178,2]
[315427978,1709028143204,-500.0,0.00019178,2]
[315427979,1709028143227,-500.0,0.00019178,2]
[315427980,1709028143250,-500.0,0.00019178,2]
[315427981,1709028143271,-348.79326323,0.00019178,2]
[315427982,1709028143299,-500.0,0.00019178,2]
[315427983,1709028143321,-742.98,0.00019178,2]
[315427984,1709028143342,-182.70269189,0.00019178,2]
[315427985,1709028143364,-500.64453691,0.00019178,2]
[315427986,1709028143392,-500.0,0.00019178,2]
[315427987,1709028143415,-500.0,0.00019178,2]
[315427988,1709028143437,-293.09620288,0.00019178,2]
[315427989,1709028143462,-500.0,0.00019178,2]
[315427990,1709028143485,-166.56,0.00019178,2]
[315427991,1709028143507,-535.21,0.00019178,2]
[315427992,1709028143529,-500.0,0.00019178,2]
[315427993,1709028143552,-500.74207174,0.00019178,2]
[315427994,1709028143574,-500.0,0.00019178,2]
[315427995,1709028143596,-500.0,0.00019178,2]
[315427996,1709028143617,-364.70091216,0.00019178,2]
[315427997,1709028143639,-500.0,0.00019178,2]
[315427998,1709028143661,-500.0,0.00019178,2]
[315427999,1709028143682,-614.95633362,0.00019178,2]
[315428000,1709028143813,-501.16052733,0.00019178,2]
[315428001,1709028143836,-500.0,0.00019178,2]
[315428002,1709028143857,-500.69675727,0.00019178,2]
[315428003,1709028143879,-500.0,0.00019178,2]
[315428004,1709028143904,-500.0,0.00019178,2]
[315428005,1709028143928,-1946.37,0.00019178,2]
[315428006,1709028143950,-500.38617556,0.00019178,2]
[315428007,1709028143973,-500.0,0.00019178,2]
[315428008,1709028143995,-500.0,0.00019178,2]
[315428009,1709028144018,-500.0,0.00019178,2]
[315428010,1709028144039,-500.0,0.00019178,2]
[315428011,1709028144061,-500.0,0.00019178,2]
[315428012,1709028144082,-500.0,0.00019178,2]
[315428013,1709028144104,-500.0,0.00019178,2]
[315428014,1709028144126,-501.70867165,0.00019178,2]
[315428015,1709028144149,-500.0,0.00019178,2]
[315428016,1709028144170,-500.0,0.00019178,2]
[315428017,1709028144192,-1028.52,0.00019178,2]
[315428018,1709028144215,-500.0,0.00019178,2]
[315428019,1709028144237,-500.0,0.00019178,2]
[315428020,1709028144260,-500.0,0.00019178,2]
[315428021,1709028144285,-500.0,0.00019178,2]
[315428022,1709028144308,-500.0,0.00019178,2]
[315428023,1709028144331,-500.0,0.00019178,2]
[315428024,1709028144356,-500.0,0.00019178,2]
[315428025,1709028144385,-500.0,0.00019178,2]
[315428026,1709028144407,-500.0,0.00019178,2]
[315428027,1709028144429,-500.0,0.00019178,2]
[315428028,1709028144455,-500.0,0.00019178,2]
[315428029,1709028144476,-500.0,0.00019178,2]
[315428030,1709028144498,-500.0,0.00019178,2]
[315428031,1709028144521,-500.0,0.00019178,2]
[315428032,1709028144544,-500.0,0.00019178,2]
[315428033,1709028144567,-636.69,0.00019178,2]
[315428034,1709028144588,-500.0,0.00019178,2]
[315428035,1709028144611,-1236.39,0.00019178,2]
[315428036,1709028144634,-500.0,0.00019178,2]
[315428037,1709028144657,-2867.74,0.00019178,2]
[315428038,1709028144681,-500.0,0.00019178,2]
[315428039,1709028144703,-155.0,0.00019178,2]
[315428040,1709028144726,-500.0,0.00019178,2]
[315428041,1709028144749,-1676.84,0.00019178,2]
[315428042,1709028144769,-1224.01,0.00019178,2]
[315428043,1709028144791,-500.0,0.00019178,2]
[315428044,1709028144813,-500.0,0.00019178,2]
[315428045,1709028144837,-511.95,0.00019178,2]
[315428046,1709028144861,-1276.28,0.00019178,2]
[315428047,1709028144884,-500.0,0.00019178,2]
[315428048,1709028144911,-2159.57,0.00019178,2]
[315428049,1709028144933,-500.0,0.00019178,2]
[315428050,1709028144955,-500.0,0.00019178,2]
[315428051,1709028144978,-500.0,0.00019178,2]
[315428052,1709028144999,-1776.53,0.00019178,2]
[315428053,1709028145021,-500.0,0.00019178,2]
[315428054,1709028145043,-369.76023936,0.00019178,2]
[315428055,1709028145066,-11831.51904321,0.00019178,2]
[315428159,1709028635947,-303.24105558,0.00017556,2]
[315428160,1709028635957,-245.61231401,0.00017556,2]
[315428161,1709028635967,-1023.20286898,0.000189,2]
[315428162,1709028635976,-185.17,0.00019168,3]
[315428163,1709028635985,-2215.5,0.00019177,2]
[315428164,1709028635995,-500.0,0.00019177,2]
[315428165,1709028636005,-661.26,0.00019178,2]
[315428167,1709028636015,-500.0,0.00019178,2]
[315428169,1709028636024,-500.0,0.00019178,2]
[315428171,1709028636033,-531.36,0.00019178,2]
[315428173,1709028636043,-500.0,0.00019178,2]
[315428174,1709028636052,-476.05935812,0.00019178,2]
[315428176,1709028636062,-500.0,0.00019178,2]
[315428179,1709028636073,-362.17011137,0.00019178,2]
[315428206,1709028638575,-351.86988863,0.00019178,2]
[315428207,1709028638585,-500.0,0.00019178,2]
[315428208,1709028638595,-500.0,0.00019178,2]
[315428209,1709028638604,-377.54615885,0.00019178,2]
[315428210,1709028638613,-500.0,0.00019178,2]
[315428211,1709028638624,-612.59126247,0.00019178,2]
[315428212,1709028638633,-399.76696753,0.00019178,2]
[315428213,1709028638643,-500.0,0.00019178,2]
[315428214,1709028638652,-294.53909541,0.00019178,2]
[315428215,1709028638662,-500.0,0.00019178,2]
[315428216,1709028638672,-500.0,0.00019178,2]
[315428217,1709028638681,-355.09942665,0.00019178,2]
[315428218,1709028638693,-144.90057335,0.00019178,2]
[315428219,1709028638702,-500.0,0.00019178,2]
[315428220,1709028638711,-500.0,0.00019178,2]
[315428221,1709028638720,-255.55957885,0.00019178,2]
[315428222,1709028638730,-500.0,0.00019178,2]
[315428223,1709028638739,-577.73,0.00019178,2]
[315428224,1709028638748,-500.0,0.00019178,2]
[315428225,1709028638757,-510.03816746,0.00019178,2]
[315428226,1709028638766,-558.01,0.00019178,2]
[315428227,1709028638775,-500.0,0.00019178,2]
[315428228,1709028638784,-500.0,0.00019178,2]
[315428229,1709028638793,-500.0,0.00019178,2]
[315428230,1709028638802,-500.0,0.00019178,2]
[315428231,1709028638811,-486.33780761,0.00019178,2]
[315428232,1709028638822,-507.68334626,0.00019178,2]
[315428233,1709028638831,-500.86552404,0.00019178,2]
[315428234,1709028638840,-500.0,0.00019178,2]
[315428235,1709028638849,-500.0,0.00019178,2]
[315428236,1709028638858,-500.0,0.00019178,2]
[315428237,1709028638867,-500.0,0.00019178,2]
[315428238,1709028638877,-1532.08,0.00019178,2]
[315428239,1709028638886,-500.0,0.00019178,2]
[315428240,1709028638895,-500.0,0.00019178,2]
[315428241,1709028638904,-500.0,0.00019178,2]
[315428242,1709028638914,-501.01152787,0.00019178,2]
[315428243,1709028638924,-478.21060448,0.00019178,2]
[315428244,1709028638945,-21.78939552,0.00019178,2]
[315428245,1709028638955,-500.0,0.00019178,2]
[315428246,1709028638965,-500.0,0.00019178,2]
[315428247,1709028638974,-500.0,0.00019178,2]
[315428248,1709028638983,-632.27431855,0.00019178,2]
[315428249,1709028638993,-500.0,0.00019178,2]
[315428250,1709028639002,-500.0,0.00019178,2]
[315428251,1709028639011,-500.0,0.00019178,2]
[315428253,1709028639020,-1453.74,0.00019178,2]
[315428255,1709028639030,-500.0,0.00019178,2]
[315428257,1709028639039,-500.0,0.00019178,2]
[315428259,1709028639048,-500.0,0.00019178,2]
[315428261,1709028639058,-500.0,0.00019178,2]
[315428263,1709028639067,-500.0,0.00019178,2]
[315428265,1709028639077,-500.0,0.00019178,2]
[315428267,1709028639086,-500.0,0.00019178,2]
[315428269,1709028639095,-500.18571217,0.00019178,2]
[315428271,1709028639105,-500.0,0.00019178,2]
[315428273,1709028639113,-500.20544472,0.00019178,2]
[315428275,1709028639122,-500.0,0.00019178,2]
[315428277,1709028639131,-285.05808848,0.00019178,2]
[315428279,1709028639139,-500.0,0.00019178,2]
[315428281,1709028639149,-292.53384056,0.00019178,2]
[315428283,1709028639157,-505.06033528,0.00019178,2]
[315428285,1709028639167,-500.0,0.00019178,2]
[315428287,1709028639176,-500.64514974,0.00019178,2]
[315428289,1709028639185,-500.0,0.00019178,2]
[315428291,1709028639194,-500.0,0.00019178,2]
[315428293,1709028639203,-509.88522936,0.00019178,2]
[315428295,1709028639213,-631.85,0.00019178,2]
[315428297,1709028639222,-500.0,0.00019178,2]
[315428299,1709028639230,-868.09,0.00019178,2]
[315428301,1709028639239,-500.0,0.00019178,2]
[315428303,1709028639249,-500.0,0.00019178,2]
[315428305,1709028639258,-500.0,0.00019178,2]
[315428306,1709028639267,-500.0,0.00019178,2]
[315428308,1709028639276,-742.1,0.00019178,2]
[315428310,1709028639285,-500.96626582,0.00019178,2]
[315428312,1709028639295,-500.0,0.00019178,2]
[315428314,1709028639305,-1214.2,0.00019178,2]
[315428316,1709028639315,-2275.7,0.00019178,2]
[315428318,1709028639324,-500.0,0.00019178,2]
[315428320,1709028639362,-500.0,0.00019178,2]
[315428322,1709028639371,-500.0,0.00019178,2]
[315428324,1709028639381,-500.0,0.00019178,2]
[315428326,1709028639390,-710.69,0.00019178,2]
[315428328,1709028639399,-500.0,0.00019178,2]
[315428331,1709028639409,-1000.0,0.00019178,2]
[315428332,1709028639418,-9197.61,0.00019178,2]
[315428334,1709028639427,-500.0,0.00019178,2]
[315428336,1709028639438,-500.0,0.00019178,2]
[315428339,1709028639447,-1302.14,0.00019178,2]
[315428340,1709028639457,-3618.02,0.00019178,2]
[315428342,1709028639466,-500.0,0.00019178,2]
[315428344,1709028639475,-1764.95,0.00019178,2]
[315428346,1709028639484,-500.0,0.00019178,2]
[315428349,1709028639494,-503.20835864,0.00019178,2]
[315428351,1709028639503,-268.55333724,0.00019178,2]
[315428352,1709028639512,-500.0,0.00019178,2]
[315428354,1709028639523,-500.0,0.00019178,2]
[315428356,1709028639534,-500.67580525,0.00019178,2]
[315428358,1709028639542,-549.59387891,0.00019178,2]
[315428359,1709028639551,-544.99348939,0.00019178,2]
[315428361,1709028639561,-504.40324197,0.00019178,2]
[315428364,1709028639571,-500.0,0.00019178,2]
[315428365,1709028639580,-443.10422866,0.00019178,2]
[315428367,1709028639590,-500.0,0.00019178,2]
[315428369,1709028639599,-571.45,0.00019178,2]
[315428371,1709028639609,-500.0,0.00019178,2]
[315428373,1709028639620,-500.0,0.00019178,2]
[315428375,1709028639629,-500.0,0.00019178,2]
[315428377,1709028639638,-506.51167982,0.00019178,2]
[315428379,1709028639648,-500.0,0.00019178,2]
[315428381,1709028639657,-2446.33,0.00019178,2]
[315428383,1709028639666,-500.0,0.00019178,2]
[315428385,1709028639675,-1864.84,0.00019178,2]
[315428387,1709028639684,-500.0,0.00019178,2]
[315428400,1709028639693,-500.0,0.00019178,2]
[315428402,1709028639806,-500.65277545,0.00019178,2]
[315428404,1709028639816,-500.0,0.00019178,2]
[315428406,1709028639825,-500.84804991,0.00019178,2]
[315428408,1709028639835,-500.0,0.00019178,2]
[315428410,1709028639845,-500.0,0.00019178,2]
[315428412,1709028639854,-500.0,0.00019178,2]
[315428414,1709028639863,-500.80767734,0.00019178,2]
[315428416,1709028639872,-500.0,0.00019178,2]
[315428418,1709028639881,-500.0,0.00019178,2]
[315428419,1709028639890,-500.0,0.00019178,2]
[315428420,1709028639899,-17022.86,0.00019178,2]
[315428421,1709028639909,-500.0,0.00019178,2]
[315428422,1709028639918,-500.0,0.00019178,2]
[315428423,1709028639927,-821.94,0.00019178,2]
[315428424,1709028639936,-821.94,0.00019178,2]
[315428425,1709028639945,-500.0,0.00019178,2]
[315428426,1709028639955,-500.0,0.00019178,2]
[315428427,1709028639963,-227.67643892,0.00019178,2]
[315428428,1709028639973,-500.91730771,0.00019178,2]
[315428429,1709028639982,-500.0,0.00019178,2]
[315428430,1709028639992,-500.0,0.00019178,2]
[315428431,1709028640002,-1684.1,0.00019178,2]
[315428432,1709028640011,-500.0,0.00019178,2]
[315428433,1709028640020,-500.0,0.00019178,2]
[315428434,1709028640029,-500.0,0.00019178,2]
[315428435,1709028640038,-501.17206482,0.00019178,2]
[315428436,1709028640046,-500.0,0.00019178,2]
[315428437,1709028640056,-494.64072621,0.00019178,2]
[315428438,1709028640064,-1299.17,0.00019178,2]
[315428439,1709028640073,-500.0,0.00019178,2]
[315428440,1709028640082,-500.0,0.00019178,2]
[315428441,1709028640091,-500.0,0.00019178,2]
[315428442,1709028640100,-3035.03,0.00019178,2]
[315428444,1709028640109,-500.0,0.00019178,2]
[315428446,1709028640119,-500.0,0.00019178,2]
[315428448,1709028640128,-6468.19,0.00019178,2]
[315428450,1709028640138,-524.3336593,0.00019178,2]
[315428452,1709028640147,-1295.41,0.00019178,2]
[315428454,1709028640156,-500.0,0.00019178,2]
[315428456,1709028640165,-591.02,0.00019178,2]
[315428458,1709028640174,-320.15175574,0.00019178,2]
[315428460,1709028640192,-500.0,0.00019178,2]
[315428463,1709028640204,-4493.34,0.00019178,2]
[315428465,1709028640213,-2378.1,0.00019178,2]
[315428467,1709028640223,-2125.67,0.00019178,2]
[315428469,1709028640233,-3836.51,0.00019178,2]
[315428471,1709028640243,-500.0,0.00019178,2]
[315428473,1709028640253,-155.0,0.00019178,2]
[315428475,1709028640262,-3097.14,0.00019178,2]
[315428477,1709028640272,-155.13030946,0.00019178,2]
[315428479,1709028640282,-17880.1,0.00019178,2]
[315428481,1709028640291,-500.0,0.00019178,2]
[315428483,1709028640300,-864.77,0.00019178,2]
[315428485,1709028640310,-500.0,0.00019178,2]
[315428487,1709028640319,-500.0,0.00019178,2]
[315428489,1709028640329,-500.27404044,0.00019178,2]
[315428491,1709028640338,-500.0,0.00019178,2]
[315428493,1709028640348,-500.0,0.00019178,2]
[315428495,1709028640357,-1660.55,0.00019178,2]
[315428497,1709028640366,-501.22080587,0.00019178,2]
[315428499,1709028640376,-728.61,0.00019178,2]
[315428501,1709028640385,-500.0,0.00019178,2]
[315428503,1709028640395,-500.0,0.00019178,2]
[315428505,1709028640404,-500.0,0.00019178,2]
[315428507,1709028640414,-1049.68,0.00019178,2]
[315428509,1709028640424,-500.0,0.00019178,2]
[315428511,1709028640433,-694.82180753,0.00019178,2]
[315428513,1709028640443,-166.560288,0.00019178,2]
[315428515,1709028640453,-166.905245,0.00019178,2]
[315428517,1709028640463,-171.665506,0.00019178,2]
[315428519,1709028640472,-166.666666,0.00019178,2]
[315428520,1709028640482,-430.973088,0.00019178,4]
[315428521,1709028640492,-500.0,0.00019232,2]
[315428522,1709028640501,-500.0,0.00019287,2]
[315428523,1709028640510,-922.88634181,0.00019296,2]
[315428524,1709028640520,-500.0,0.0001934,2]
[315428525,1709028640530,-821.94,0.0001934,2]
[315428526,1709028640541,-500.0,0.00019342,2]
[315428527,1709028640550,-500.0,0.00019351,2]
[315428528,1709028640559,-821.94,0.00019351,2]
[315428529,1709028640569,-821.94,0.00019351,2]
[315428530,1709028640579,-821.94,0.00019351,2]
[315428531,1709028640588,-821.94,0.00019351,2]
[315428532,1709028640599,-821.94,0.00019351,2]
[315428534,1709028640608,-821.94,0.00019351,2]
[315428535,1709028640619,-276000.0,0.00019352,2]
[315428536,1709028640629,-500.0,0.00019396,2]
[315428537,1709028640638,-500.0,0.00019451,2]
[315428538,1709028640647,-821.94,0.00019451,2]
[315428539,1709028640657,-821.94,0.00019451,2]
[315428540,1709028640666,-496.66696298,0.00019452,2]
[315428542,1709028640675,-500.0,0.00019452,2]
[315428544,1709028640684,-500.0,0.00019452,2]
[315428546,1709028640694,-500.0,0.00019452,2]
[315428547,1709028640703,-1028.52,0.00019452,2]
[315428548,1709028640713,-500.0,0.00019452,2]
[315428549,1709028640722,-501.12415207,0.00019452,2]
[315428550,1709028640731,-1276.28,0.00019452,2]
[315428551,1709028640741,-500.0,0.00019452,2]
[315428552,1709028640750,-500.0,0.00019452,2]
[315428553,1709028640759,-661.26,0.00019452,2]
[315428554,1709028640769,-500.0,0.00019452,2]
[315428555,1709028640778,-531.36,0.00019452,2]
[315428556,1709028640787,-500.0,0.00019452,2]
[315428558,1709028640796,-714.04,0.00019452,2]
[315428560,1709028640806,-500.0,0.00019452,2]
[315428561,1709028640816,-500.0,0.00019452,2]
[315428562,1709028640826,-500.0,0.00019452,2]
[315428563,1709028640836,-241.83685928,0.00019452,2]
[315428564,1709028640846,-500.0,0.00019452,2]
[315428565,1709028640855,-500.0,0.00019452,2]
[315428566,1709028640865,-500.0,0.00019452,2]
[315428567,1709028640875,-500.0,0.00019452,2]
[315428568,1709028640884,-500.0,0.00019452,2]
[315428569,1709028640894,-507.42166358,0.00019452,2]
[315428570,1709028640903,-577.73,0.00019452,2]
[315428571,1709028640913,-500.0,0.00019452,2]
[315428572,1709028640922,-558.01,0.00019452,2]
[315428573,1709028640931,-500.0,0.00019452,2]
[315428574,1709028640940,-500.0,0.00019452,2]
[315428575,1709028640950,-500.0,0.00019452,2]
[315428577,1709028640959,-500.0,0.00019452,2]
[315428579,1709028640968,-322.01702261,0.00019452,2]
[315428581,1709028640977,-500.0,0.00019452,2]
[315428583,1709028640987,-500.0,0.00019452,2]
[315428585,1709028640995,-500.0,0.00019452,2]
[315428587,1709028641004,-1532.08,0.00019452,2]
[315428589,1709028641013,-500.0,0.00019452,2]
[315428591,1709028641024,-500.0,0.00019452,2]
[315428593,1709028641034,-500.0,0.00019452,2]
[315428595,1709028641043,-587.18999209,0.00019452,2]
[315428597,1709028641052,-500.0,0.00019452,2]
[315428599,1709028641061,-500.0,0.00019452,2]
[315428601,1709028641071,-1453.74,0.00019452,2]
[315428603,1709028641080,-500.0,0.00019452,2]
[315428605,1709028641090,-500.0,0.00019452,2]
[315428607,1709028641099,-500.0,0.00019452,2]
[315428609,1709028641108,-282.6196593,0.00019452,2]
[315428611,1709028641117,-500.0,0.00019452,2]
[315428613,1709028641126,-500.0,0.00019452,2]
[315428615,1709028641135,-500.0,0.00019452,2]
[315428617,1709028641144,-376.53396052,0.00019452,2]
[315428619,1709028641153,-501.19562815,0.00019452,2]
[315428621,1709028641163,-631.85,0.00019452,2]
[315428623,1709028641171,-500.0,0.00019452,2]
[315428625,1709028641181,-868.09,0.00019452,2]
[315428628,1709028641190,-500.0,0.00019452,2]
[315428629,1709028641199,-500.0,0.00019452,2]
[315428632,1709028641210,-500.0,0.00019452,2]
[315428634,1709028641218,-500.0,0.00019452,2]
[315428636,1709028641227,-742.1,0.00019452,2]
[315428638,1709028641237,-500.0,0.00019452,2]
[315428640,1709028641246,-1214.2,0.00019452,2]
[315428642,1709028641255,-2275.7,0.00019452,2]
[315428644,1709028641264,-302.1536889,0.00019452,2]
[315428646,1709028641273,-500.0,0.00019452,2]
[315428648,1709028641282,-710.69,0.00019452,2]
[315428650,1709028641291,-500.0,0.00019452,2]
[315428652,1709028641300,-1000.0,0.00019452,2]
[315428654,1709028641309,-9197.61,0.00019452,2]
[315428656,1709028641319,-500.0,0.00019452,2]
[315428658,1709028641328,-500.0,0.00019452,2]
[315428660,1709028641337,-1302.14,0.00019452,2]
[315428662,1709028641346,-3618.02,0.00019452,2]
[315428664,1709028641355,-581.55260075,0.00019452,2]
[315428666,1709028641365,-1764.95,0.00019452,2]
[315428668,1709028641375,-500.0,0.00019452,2]
[315428670,1709028641384,-501.29042956,0.00019452,2]
[315428672,1709028641393,-554.96885868,0.00019452,2]
[315428674,1709028641402,-500.0,0.00019452,2]
[315428676,1709028641411,-500.0,0.00019452,2]
[315428678,1709028641420,-571.45,0.00019452,2]
[315428680,1709028641429,-152.09589941,0.00019452,2]
[315428682,1709028641438,-500.0,0.00019452,2]
[315428684,1709028641448,-500.0,0.00019452,2]
[315428686,1709028641459,-500.0,0.00019452,2]
[315428688,1709028641469,-2446.33,0.00019452,2]
[315428690,1709028641478,-500.0,0.00019452,2]
[315428692,1709028641488,-1864.84,0.00019452,2]
[315428694,1709028641497,-500.0,0.00019452,2]
[315428696,1709028641506,-226.05511992,0.00019452,2]
[315428698,1709028641515,-500.0,0.00019452,2]
[315428700,1709028641528,-500.0,0.00019452,2]
[315428702,1709028641537,-500.0,0.00019452,2]
[315428704,1709028641546,-500.0,0.00019452,2]
[315428706,1709028641556,-500.0,0.00019452,2]
[315428708,1709028641567,-262.021544,0.00019452,2]
[315428710,1709028641577,-500.0,0.00019452,2]
[315428712,1709028641586,-17022.86,0.00019452,2]
[315428714,1709028641596,-500.0,0.00019452,2]
[315428716,1709028641605,-500.0,0.00019452,2]
[315428718,1709028641617,-491.01392198,0.00019452,2]
[315428720,1709028641627,-500.0,0.00019452,2]
[315428722,1709028641637,-1684.1,0.00019452,2]
[315428724,1709028641646,-500.0,0.00019452,2]
[315428726,1709028641656,-500.0,0.00019452,2]
[315428728,1709028641665,-501.34358401,0.00019452,2]
[315428730,1709028641674,-500.0,0.00019452,2]
[315428732,1709028641684,-1299.17,0.00019452,2]
[315428734,1709028641694,-500.0,0.00019452,2]
[315428736,1709028641703,-500.0,0.00019452,2]
[315428738,1709028641712,-500.0,0.00019452,2]
[315428740,1709028641722,-3035.03,0.00019452,2]
[315428742,1709028641731,-500.0,0.00019452,2]
[315428744,1709028641741,-6468.19,0.00019452,2]
[315428746,1709028641751,-500.0,0.00019452,2]
[315428748,1709028641760,-1295.41,0.00019452,2]
[315428749,1709028641770,-500.0,0.00019452,2]
[315428752,1709028641780,-591.02,0.00019452,2]
[315428754,1709028641790,-500.0,0.00019452,2]
[315428756,1709028641799,-4493.34,0.00019452,2]
[315428758,1709028641809,-2378.1,0.00019452,2]
[315428760,1709028641819,-2125.67,0.00019452,2]
[315428762,1709028641829,-3836.51,0.00019452,2]
[315428764,1709028641838,-500.0,0.00019452,2]
[315428766,1709028641848,-3097.14,0.00019452,2]
[315428768,1709028641857,-17880.1,0.00019452,2]
[315428770,1709028641866,-295.01720244,0.00019452,2]
[315428772,1709028641875,-864.77,0.00019452,2]
[315428774,1709028641885,-500.0,0.00019452,2]
[315428776,1709028641894,-500.0,0.00019452,2]
[315428778,1709028641904,-500.0,0.00019452,2]
[315428780,1709028641914,-1660.55,0.00019452,2]
[315428781,1709028641922,-728.61,0.00019452,2]
[315428782,1709028641932,-500.0,0.00019452,2]
[315428783,1709028641941,-500.0,0.00019452,2]
[315428785,1709028641951,-500.0,0.00019452,2]
[315428787,1709028641960,-1049.68,0.00019452,2]
[315428788,1709028641970,-500.0,0.00019452,2]
[315428789,1709028641979,-486.79569354,0.00019506,2]
[315428791,1709028641989,-922.88634181,0.00019584,2]
[315428792,1709028641998,-821.94,0.00019614,2]
[315428793,1709028642008,-166.666666,0.00019627,2]
[315428794,1709028642017,-821.94,0.00019725,2]
[315428795,1709028642027,-500.0,0.00019726,2]
[315428796,1709028642036,-500.0,0.00019726,2]
[315428797,1709028642046,-330.8,0.00019726,2]
[315428799,1709028642055,-1028.52,0.00019726,2]
[315428801,1709028642064,-500.0,0.00019726,2]
[315428803,1709028642075,-1276.28,0.00019726,2]
[315428805,1709028642084,-500.0,0.00019726,2]
[315428807,1709028642093,-661.26,0.00019726,2]
[315428808,1709028642102,-500.0,0.00019726,2]
[315428810,1709028642111,-531.36,0.00019726,2]
[315428812,1709028642120,-500.0,0.00019726,2]
[315428813,1709028642129,-714.04,0.00019726,2]
[315428814,1709028642138,-500.0,0.00019726,2]
[315428815,1709028642147,-500.0,0.00019726,2]
[315428816,1709028642157,-548.95221423,0.00019726,2]
[315428817,1709028642166,-500.0,0.00019726,2]
[315428818,1709028642175,-500.0,0.00019726,2]
[315428819,1709028642185,-500.0,0.00019726,2]
[315428820,1709028642194,-500.0,0.00019726,2]
[315428821,1709028642203,-333.04255885,0.00019726,2]
[315428822,1709028642214,-577.73,0.00019726,2]